Cogmind - Beta 16.1 @@@ ROGUE MODE // 2026.05.02 @ 12:17:35 Player: SunShine214 Result: Destroyed by PL-AST(R) with Subdweller Laser Performance ------------- Evolutions (0) 0 Regions Visited (2) 400 Robots Destroyed (19) 95 Value Destroyed (420) 420 Prototype IDs (0) 0 Alien Tech Used (0) 0 Bonus (0) 0 TOTAL SCORE: 915 Bonus ------- None Cogmind --------- Core Integrity 0/250 Matter 288/300 Energy 99/100 System Corruption 1% Temperature Cool (8) Movement Flying (40) Location -10/Subcaves Parts ------- > --- POWER (1) -------- (None) > --- PROPULSION (2) --- Flight Unit > --- UTILITY (2) ------ (None) > --- WEAPON (2) ------- (None) > --- INVENTORY (5) ---- Light Treads Light Treads Wheel Large Storage Unit Sensor Array Peak State ------------ > --- POWER ------------ Light Ion Engine > --- PROPULSION ------- Light Treads Light Treads > --- UTILITY ---------- Small Storage Unit Seismic Detector > --- WEAPON ----------- Medium Laser Assault Rifle > --- INVENTORY -------- Mining Laser [Rating: 7] Favorites ----------- Power Light Ion Engine Engine Light Ion Engine Propulsion Light Treads Treads Light Treads Wheel Wheel Flight Unit Flight Unit Utility Seismic Detector Device Seismic Detector Storage Small Storage Unit Weapon Assault Rifle Energy Gun Medium Laser Ballistic Gun Assault Rifle Launcher Grenade Launcher Special Weapon Mining Laser Build | -11 -10 -10 ------- Run | Yrd Mat Sub Slots Evolved . | . . . Power . | . . . Propulsion . | . . . Utility . | . . . Weapon . | . . . Parts Attached 18 | 8 7 3 Power 2 | 1 1 . Engine 2 | 1 1 . Core . | . . . Reactor . | . . . Propulsion 7 | 2 3 2 Treads 3 | 2 1 . Leg . | . . . Wheel 2 | . 2 . Hover . | . . . Flight 2 | . . 2 Utility 3 | 2 1 . Device 1 | 1 . . Storage 2 | 1 1 . Processor . | . . . Hackware . | . . . Protection . | . . . Artifact . | . . . Weapon 6 | 3 2 1 Energy Gun 3 | 2 1 . Energy Cannon . | . . . Ballistic Gun 1 | 1 . . Ballistic Cannon . | . . . Launcher 1 | . . 1 Special Weapon 1 | . 1 . Impact Weapon . | . . . Slashing Weapon . | . . . Piercing Weapon . | . . . Special Melee Weapon . | . . . Unidentified Prototypes . | . . . Parts Lost 10 | . 5 5 Power 1 | . 1 . Propulsion 4 | . 2 2 Utility 1 | . . 1 Weapon 4 | . 2 2 Highest Loss Streak 5 | . 5 4 To Critical Strikes . | . . . Average Backups 6 | . 6 11 Power . | . . . Propulsion 2 | . 2 6 Utility 1 | . 1 3 Weapon 1 | . 1 . Tool/Special . | . . . Unused Backups 10 | . . 10 Power . | . . . Propulsion 5 | . . 5 Utility 5 | . . 5 Weapon . | . . . Tool/Special . | . . . Average Slot Usage (%) 83 | . 87 57 Engine 7 | . 8 . Treads 15 | . 17 . Wheel 8 | . 7 16 Device 13 | . 14 10 Storage 13 | . 14 8 Energy Gun 13 | . 14 7 Ballistic Gun 7 | . 8 . Launcher 1 | . . 8 Special Weapon 1 | . 1 . Peak Build Rating 7 | 7 7 7 Average Rating 6 | 5 6 4 On Entrance 4 | . 7 7 Avg Prop Armor Cover (%) . | . . . Naked Turns . | . . . Heaviest Build 25 | 13 23 25 Greatest Support 40 | 40 40 20 Greatest Overweight (x) 2 | . 2 1 Average Overweight (x) . | . . . Largest Inventory Capacity 15 | 8 15 15 Average Capacity 9 | 7 9 10 Most Carried 15 | 1 15 15 Average Carried 6 | . 6 10 Final Capacity 15 | 8 15 5 Final Carried 15 | 1 15 5 Class Distribution -------------------- 100% | Mutant Dominant Class ---------------- Mutant | -10/Materials Mutant | -10/Subcaves Resources | -11 -10 -10 ----------- Run | Yrd Mat Sub Matter Collected 494 | 313 104 77 Remotely . | . . . Salvage Created 625 | 168 384 73 Parts 36 | 8 24 4 Haulers Intercepted 2 | . 2 . Recyclers Shooed . | . . . Parts Field Recycled . | . . . Retrieved Matter . | . . . Parts Self-Destructed 6 | . . 6 Prevented . | . . . Parts Restored . | . . . Kills | -11 -10 -10 ------- Run | Yrd Mat Sub Combat Hostiles Destroyed 11 | . 9 2 Guns 7 | . 7 . AOE 4 | . 2 2 Classes Destroyed 8 | 3 4 1 Worker 1 | 1 . . Builder 1 | . 1 . Tunneler 3 | 3 . . Hauler 2 | . 2 . Recycler 1 | 1 . . Swarmer 3 | . 3 . Grunt 6 | . 6 . Subdweller 2 | . . 2 Best Kill Streak 3 | 2 3 2 Combat Bots Only 3 | . 3 2 Max Kills in Single Turn 2 | 1 2 1 Gunslinging . | . . . Exploded 2 | . 2 1 Melee . | . . . Uniques/NPCs Destroyed . | . . . Combat | -11 -10 -10 -------- Run | Yrd Mat Sub Hostile Shots Fired 88 | . 63 25 Missed 25 | . 14 11 Hits 63 | . 49 14 Projectile 63 | . 49 14 AOE 2 | . . 2 Critical Strikes 1 | . 1 . Damage Taken 1055 | . 702 353 Core 262 | . 110 152 Absorbed by Shields . | . . . Core Remaining (%) 100 | 100 . . Volleys Fired 70 | 11 55 4 Largest 2 | 2 2 2 Hottest 140 | 70 140 70 Shots Fired 105 | 22 78 5 Gun 100 | 22 77 1 Cannon . | . . . Launcher 4 | . . 4 Special 1 | . 1 . Kinetic 33 | 11 22 . Thermal 68 | 11 56 1 Explosive 4 | . . 4 Electromagnetic . | . . . Robot Hit Streak 7 | 3 7 5 Robot Miss Streak 4 | 3 4 . Penetration Max . | . . . Secondary Targets 2 | . 2 . Max Gunslinging Chain 1 | . 1 . Shots Hit Robots 64 | 11 52 1 Core Hits 30 | 5 21 4 Critical Kills . | . . . Critical Parts Destroyed . | . . . Critical Strikes 3 | 1 2 . Burn 3 | 1 2 . Melee Attacks . | . . . Impact . | . . . Slashing . | . . . Piercing . | . . . Sneak Attacks . | . . . Combat Hostiles . | . . . Follow-up Attacks . | . . . Damage Inflicted 1181 | 144 832 205 Guns 741 | 140 601 . Cannons . | . . . Explosions 424 | . 219 205 Melee . | . . . Ramming 16 | 4 12 . Kinetic 240 | 54 186 . Thermal 501 | 86 415 . Explosive 424 | . 219 205 Electromagnetic . | . . . Impact . | . . . Slashing . | . . . Piercing . | . . . Highest Corruption 1 | . 1 1 Average Corruption 1 | . 1 1 Corruption Purged . | . . . Corruption Blocked . | . . . Effects 2 | . . 2 Message Errors 1 | . . 1 Heat Flow Errors 1 | . . 1 Overload Shots . | . . . Overflow Damage 17 | . 17 . Projectiles . | . . . Explosions 17 | . 17 . Melee . | . . . Knockbacks . | . . . Impact . | . . . Kinetic . | . . . Secondary . | . . . Self-Inflicted Damage 122 | . 115 7 Shots 2 | . 1 1 Rammed 2 | . 2 . Targets Rammed 3 | 1 2 . Kicked . | . . . Crushed 1 | 1 . . Highest Temperature 248 | 45 248 88 Average Temperature 76 | 18 89 65 Received Heat Transfer 384 | . 306 78 Effects 1 | . 1 . Energy Bleed 1 | . 1 . Siege Activations . | . . . Martial Activations . | . . . Shielding Activations . | . . . Robots Disrupted . | . . . Combat Hostiles . | . . . Robots Corrupted . | . . . Combat Hostiles . | . . . Parts Fried . | . . . Impact Corruptions . | . . . Robots Melted . | . . . Combat Hostiles . | . . . Parts Melted 2 | 2 . . Heat Transferred 1561 | 321 1240 . Parts Sabotaged . | . . . Parts Stolen . | . . . Parts Stripped . | . . . Power Chain Reactions . | . . . Alert | -11 -10 -10 ------- Run | Yrd Mat Sub Maximum Alert Level . | . . . Low Security (%) 100 | 100 100 . Level 1 . | . . . Level 2 . | . . . Level 3 . | . . . Level 4 . | . . . Level 5 . | . . . High Security . | . . . Max Security . | . . . Peak Influence 126 | 10 126 . Initial 3 | . 3 . Average 36 | 2 39 . Influence Increases 374 | 25 349 . Destroy 0b10 Robot/C 180 | . 180 . Destroy 0b10 Robot/NC 40 | 25 15 . Destroy Leader 44 | . 44 . Successful Hack 18 | . 18 . Disable Machine 45 | . 45 . Destroy Structure 32 | . 32 . Lose Combat Pursuer 15 | . 15 . Influence Decreases 374 | 20 327 27 Entered New Map 16 | . 2 14 Time Decay 336 | 20 303 13 Lost Part 22 | . 22 . Squads Dispatched . | . . . Investigation . | . . . Extermination . | . . . Reinforcement . | . . . Assault . | . . . Garrison . | . . . Intercept . | . . . Searches Triggered . | . . . Construction Impeded . | . . . Haulers Reinforced . | . . . Active Scanning Responses . | . . . Cargo Convoy Interrupts . | . . . Stealth | -11 -10 -10 --------- Run | Yrd Mat Sub Distress Signals . | . . . Communications Jammed . | . . . Distress Signals . | . . . Times Spotted 29 | . 21 8 Peak Tracking Total 5 | . 4 5 Tactical Retreats 2 | . 1 1 Traps | -11 -10 -10 ------- Run | Yrd Mat Sub Traps Triggered 2 | . 2 . Indirectly . | . . . Trap Hack Attempts . | . . . Triggered . | . . . Disarmed . | . . . Reprogrammed . | . . . Reused . | . . . Traps Extracted . | . . . Installed . | . . . Triggered . | . . . Machines | -11 -10 -10 ---------- Run | Yrd Mat Sub Machines Disabled 3 | . 3 . Max in Single Turn 1 | . 1 . Machines Repaired . | . . . Machines Dismantled . | . . . Machines Sabotaged . | . . . Overloaded Fab Kills . | . . . Hacking | -11 -10 -10 --------- Run | Yrd Mat Sub Machines Accessed 5 | . 5 . Terminals 4 | . 4 . Fabricators . | . . . Repair Stations . | . . . Recycling Units 1 | . 1 . Scanalyzers . | . . . Garrison Access . | . . . Total Hacks 13 | . 13 . Successful 6 | . 6 . Failed 7 | . 7 . Catastrophic 2 | . 2 . Database Lockouts . | . . . Manual 2 | . 2 . Terminals 11 | . 11 . Fabricators . | . . . Repair Stations . | . . . Recycling Units 2 | . 2 . Scanalyzers . | . . . Garrison Access . | . . . Terminal Hacks 5 | . 5 . Hauler Manifests 2 | . 2 . Registered Components 1 | . 1 . Zone Layout 2 | . 2 . Fabricator Hacks . | . . . Repair Station Hacks . | . . . Recycling Unit Hacks 1 | . 1 . Retrieve Components 1 | . 1 . Scanalyzer . | . . . Garrison Access Hacks . | . . . Unauthorized Hacks . | . . . Terminals . | . . . Fabricators . | . . . Repair Stations . | . . . Recycling Units . | . . . Scanalyzers . | . . . Garrison Access . | . . . Data Cores Recovered . | . . . Used . | . . . Hacking Detections 5 | . 5 . Full Trace Events 1 | . 1 . Feedback Events . | . . . Feedback Blocked . | . . . Robot Schematics Acquired . | . . . Robots Built . | . . . Authchips . | . . . Time . | . . . Total Robot Build Rating . | . . . Part Schematics Acquired . | . . . Parts Built . | . . . Authchips . | . . . Time . | . . . Total Part Build Rating . | . . . Part Studies Acquired . | . . . Parts Repaired . | . . . Time . | . . . Parts Recycled . | . . . Recycled Matter . | . . . Retrieved Matter . | . . . Retrieved Components . | . . . Parts Scanalyzed . | . . . Part Schematics Acquired . | . . . Parts Damaged . | . . . Bothacking | -11 -10 -10 ------------ Run | Yrd Mat Sub Used RIF Installer . | . . . Robots Hacked . | . . . Non-combat . | . . . Combat . | . . . Robot Hacks Applied . | . . . Relay Couplers Released . | . . . Fabnet Peak Effective % . | . . . Robots Rewired . | . . . Allies Hacked . | . . . Hacks Repelled . | . . . Allies | -11 -10 -10 -------- Run | Yrd Mat Sub Total Allies . | . . . Largest Group . | . . . Highest-Rated Group . | . . . Highest-Rated Ally . | . . . Total Orders . | . . . Ally Attacks . | . . . Total Damage . | . . . Kills . | . . . Allies Corrupted . | . . . Allies Melted . | . . . Intel | -11 -10 -10 ------- Run | Yrd Mat Sub Active Infowar (turns) 1456 | 18 1287 151 Seismic 1456 | 18 1287 151 Robot Analysis Total . | . . . Derelict Logs Recovered . | . . . Drone Launches . | . . . Drone Recoveries . | . . . Exploration | -11 -10 -10 ------------- Run | Yrd Mat Sub Turns Passed 1604 | 118 1287 199 Spaces Moved 984 | 48 623 313 Core 77 | 5 72 . Treads 296 | 43 253 . Legs . | . . . Wheels 404 | . 298 106 Hover . | . . . Flight 207 | . . 207 Fastest Speed 37 | 50 80 37 Average Speed 106 | 148 127 58 Slowest Speed 160 | 160 160 95 Overloaded Moves . | . . . Propulsion Burnouts . | . . . Robots Hopped 3 | . . 3 Potential Cave-ins . | . . . Cave-ins Triggered . | . . . Exploration Rate (%) 37 | 3 85 23 Regions Visited 2 Branch Regions 1 Pre-discovered Areas . | . . . Known Exits Taken . | . . . Unknown Exits Taken 2 | 1 1 . Scrap Searched . | . . . Spaces Dug . | . . . Terrain Destroyed 46 | . 40 6 Melee . | . . . Projectile . | . . . AOE 46 | . 40 6 Terrain Rammed . | . . . Walls Destroyed . | . . . Machines Disabled . | . . . Actions | -11 -10 -10 --------- Run | Yrd Mat Sub Total 1420 | 68 1032 320 Wait 327 | . 327 . Move 976 | 47 622 307 Hop 3 | . . 3 Pick Up 16 | 1 14 1 Fast Attach 12 | 7 4 1 Attach 2 | . 2 . Detach . | . . . Swap 8 | 1 5 2 Drop 3 | . 1 2 Fire 70 | 11 55 4 Melee . | . . . Ram 1 | . 1 . Kick . | . . . Crush 2 | 1 1 . Escape Stasis . | . . . Rewire . | . . . Trap . | . . . Miscellaneous . | . . . Route ------- -11/Scrapyard -10/Materials (discovered 5 exits: [*Mat x3] / [*Min] / [*Sub]) -10/Subcaves History --------- Turn | Location | Event 5 | -11/Scrapyard | Discovered new exit (range 14) 119 | -11/Scrapyard | Entered Materials 182 | -10/Materials | Discovered new exit (range 14) 312 | -10/Materials | Build established: Mutant 361 | -10/Materials | Discovered new exit (range 8) 563 | -10/Materials | Discovered new exit (range 5) 973 | -10/Materials | Lost 5 parts (1p2n2w) 1034 | -10/Materials | Discovered new exit (range 3) 1106 | -10/Materials | Discovered new exit (range 17) 1406 | -10/Materials | Entered Subcaves 1407 | -10/Subcaves | Approached by a straggling Scientist 1460 | -10/Subcaves | A swath of the cavern ceiling suddenly collapsed 1505 | -10/Subcaves | Core integrity fell below 50% 1508 | -10/Subcaves | Ambushed by Subdweller buried in earth 1557 | -10/Subcaves | Lost 4 parts (2n2w) 1569 | -10/Subcaves | Core integrity fell below 20% 1605 | -10/Subcaves | Destroyed by PL-AST(R) with Subdweller Laser Last Messages --------------- 01468_ System corrupted: Heat flow error (+133). 01506_ CX-HQ2(R) destroyed. JR-BAO(c): "I think it's somewhere west of here" 01508_ Sml. Laser destroyed. 01509_ L6-LHR(R): "FREEEEDUMB!" 01511_ D6-MMA(R) destroyed. 01512_ The unstable cave ceiling collapses. 01516_ Grenade Launcher destroyed. 01518_ Dropped Lrg. Storage Unit. 01520_ Wheel destroyed. 01521_ Acquired Flight Unit. 01522_ Dropped Lgt. Ion Engine. 01523_ Acquired Lrg. Storage Unit. 01526_ Flight Unit destroyed. 01527_ Acquired 35 matter. 01530_ Subatomizers dissect the Mak. ECM Suite. 01530_ Acquired 16 matter. 01534_ Acquired 26 matter. 01557_ Seismic Detector destroyed. 01585_ NJ4I032#X7OUEDAFFRMBHDRL CR3A,V5 GXVTI Map ----- +----------------------------------------------------+ | ???????????????????# " "" #????????? | | ???????????????????# #""## #????????? | | ???????????????????? ## #???## ##????????? | | ????????????????????# ## ##???## ##?????????? | | ????????????????????# #?#### ##??????????? | | ????????????????????# #?# # #??????????? | | ????????????????????# #?## #??????????? | | ???????????????????## #?## ##??????????? | | ??????????????###### #?## # #???????????? | | ?????????????## ### ####???????????? | | ?????????????# ##??????????????? | | ????????????## #???????????????? | | ????????????# #####???????????????? | | ????????##???# " ##???????????????????? | | ???????## ##" " #????????????????????? | | ??????? """"" & " #????????????????????? | | ??????? """"" " ## ## ?????????????????? | | ????????"""#" "" ### # ## #???????????????? | | ????????##?#### " #? # #???#???????????????? | | ??????????????# ###### ????????????????????? | | ??????????????# ##???## ???????????????????? | | ??????????????# ##???# ######??????????????????? | | ??????????????##* ##??###???????????????????????? | | ???????????????# #######?##???????????????????? | | ???????????????### ## #???????????????????? | | ?????????????????# @ #????????????????????? | | ?????????????????# ##RR #????????????????????? | | ????????????????# ## ##????????????????????? | | ????????????? ##### ##?????????????????????? | | ??????????# #??## ##?????????????????????? | | ??????????## ## #?## ##????????????????????? | | ??????????????#####??# ###??????????????????? | | ?????????????????????# ##?????????????????? | | ?????????????????????# #?????????????????? | | ?????????????????????# #?????????????????? | | ?????????????????????# """##?????????????????? | | ?????????????????????## #" #### ?????????????? | | ??????????????????????## " "" ?????????????? | | ???????????????????????# """" ?????????????? | | ???????????????????????# #"" ?????????????? | | ???????????????????????# "# ## ??????????????? | | ??????????????????????# "" ###? ??????????????? | | ??????????????????????##### #??????????????????? | | ??????????????????????????? ?????????????????? | | ???????????????????????????## #???????????????? | | ?????????????????????????????# ##???????????????? | | ?????????????????????????????? ##????????????????? | | ???????????????????????????????#?????????????????? | | ?????????????????????????????????????????????????? | | ?????????????????????????????????????????????????? | +----------------------------------------------------+ Best States ------------- Heat Dissipation 25 Energy Generation 10 Energy Capacity 125 Matter Stores 300 Matter Capacity 300 Sight Range 16 Terrain Scan Density 10 Evasion (%) 62 Recoil Reduction 2 Item Schematics ----------------- None Robot Schematics ------------------ None Fabricated ------------ Nothing Repaired ---------- Nothing Studied --------- None Alien Tech Used ----------------- None Achievements -------------- None Challenges ------------ None Game ------ Seed ConcussiveHackingLattice Manual? 0 Play Time 00:11:01 Cumulative 165.9 hours Start 2026.05.02 @ 12:09:03 End 2026.05.02 @ 12:17:35 Sessions 1 Manual Loads 0 Difficulty Rogue Special Mode None Game No. 258 Rogue 258 Adventurer 0 Explorer 0 Win Type - Total 1 Types 1/0/0/0/0/0/0/0/0/0 Lore% 58 Gallery% 57 Achievement% 44 Wizard Run 0 Options --------- Layout 1 ASCII 0 Keyboard 1 Movement Arrows Keybinds 0 Fullscreen 1 Font 24/Smallcaps Map View 50x35 Zoom Use 0% Tactical HUD 1 Map Filters NONE Filters NONE Steam 1 RUN: 3e01f69d-07a2-4ad2-81a3-73b080c169d4